[Event "CZE-ch Youth G10-G12-G14 2022"]
[Site "Luhacovice"]
[Date "2022.03.12"]
[Round "1.17"]
[White "Mojzisova Barbora"]
[Black "Stara, Zuzana"]
[Result "0-1"]
[ECO "B54"]
[WhiteElo "1089"]
[BlackElo "1322"]
[Annotator "NA"]
[PlyCount "118"]
[EventDate "2022.03.12"]
[EventType "swiss"]
[EventCountry "CZE"]
[SourceTitle "playchess.com"]
[Source "ChessBase"]
[SourceQuality "1"]
[TimeControl "40/5400+30:1800+30"]

1. e4 {[%emt 0:00:03]} c5 {[%emt 0:00:07]} 2. Bc4 {[%emt 0:00:14]} Nc6 {[%emt 0:01:06]} 3. Nf3 {[%emt 0:00:53]} d6 {[%emt 0:02:00]} 4. d4 {[%emt 0:02:09]} cxd4 {[%emt 0:03:13]} 5. Nxd4 {[%emt 0:01:01]} a6 {[%emt 0:01:48]} 6. Bg5 {[%emt 0:03:13]} Qa5+ {[%emt 0:07:07]} 7. Bd2 {[%emt 0:03:06]} Qc5 {[%emt 0:09:30]} 8. Nxc6 {[%emt 0:02:38]} Qxc4 {[%emt 0:02:27]} 9. Na5 {[%emt 0:02:02]} Qxe4+ {[%emt 0:01:12]} 10. Kf1 {[%emt 0:01:46]} b6 {[%emt 0:04:29]} 11. Nc3 {[%emt 0:01:51]} Qe6 {[%emt 0:05:28]} 12. Nb3 {[%emt 0:01:32]} Bb7 {[%emt 0:01:09]} 13. Qe1 {[%emt 0:02:01]} Qxe1+ {[%emt 0:01:29]} 14. Rxe1 {[%emt 0:00:30]} e5 {[%emt 0:03:05]} 15. Rg1 {[%emt 0:01:21]} O-O-O {[%emt 0:01:20]} 16. Ne4 {[%emt 0:01:51]} a5 {[%emt 0:01:53]} 17. f4 {[%emt 0:03:24]} Ba6+ {[%emt 0:01:43]} 18. Kf2 {[%emt 0:01:18]} f6 {[%emt 0:02:42]} 19. g4 {[%emt 0:01:37]} a4 {[%emt 0:00:53]} 20. Nc1 {[%emt 0:01:16]} d5 {[%emt 0:00:29]} 21. Nc3 {[%emt 0:00:59]} Bc5+ {[%emt 0:00:35]} 22. Kg2 {[%emt 0:01:09]} Bxg1 {[%emt 0:00:32]} 23. Kxg1 {[%emt 0:00:20]} b5 {[%emt 0:05:35]} 24. fxe5 {[%emt 0:00:42]} d4 {[%emt 0:05:48]} 25. Nd1 {[%emt 0:00:48]} Re8 {[%emt 0:01:18]} 26. e6 {[%emt 0:01:12]} Kc7 {[%emt 0:07:39]} 27. g5 {[%emt 0:02:24]} Bc8 {[%emt 0:01:57]} 28. gxf6 {[%emt 0:01:23]} gxf6 {[%emt 0:01:02]} 29. Ne2 {[%emt 0:00:41]} Rxe6 {[%emt 0:02:20]} 30. Nxd4 {[%emt 0:00:31]} Rxe1+ {[%emt 0:02:38]} 31. Bxe1 {[%emt 0:00:17]} Bd7 {[%emt 0:02:27]} 32. Nc3 {[%emt 0:01:39]} Kb6 {[%emt 0:03:37]} 33. b3 {[%emt 0:01:15]} axb3 {[%emt 0:00:36]} 34. cxb3 {[%emt 0:00:18]} Ne7 {[%emt 0:01:07]} 35. Bf2 {[%emt 0:01:01]} Ka6 {[%emt 0:00:37]} 36. a4 {[%emt 0:00:39]} bxa4 {[%emt 0:00:28]} 37. bxa4 {[%emt 0:00:13]} Rc8 {[%emt 0:02:21]} 38. Be1 {[%emt 0:01:06]} Rc4 {[%emt 0:02:27]} 39. Ndb5 {[%emt 0:00:50]} Bxb5 {[%emt 0:01:00]} 40. axb5+ {[%emt 0:00:20]} Kb7 {[%emt 0:00:21]} 41. Kf2 {[%emt 0:30:34]} Rc5 {[%emt 0:30:38]} 42. Kf3 {[%emt 0:00:37]} Nd5 {[%emt 0:00:28]} 43. Nxd5 {[%emt 0:00:23]} Rxd5 {[%emt 0:00:06]} 44. Bh4 {[%emt 0:00:38]} Rxb5 {[%emt 0:00:21]} 45. Kg3 {[%emt 0:00:30]} f5 {[%emt 0:02:06]} 46. Bg5 {[%emt 0:00:35]} Rb4 {[%emt 0:00:28]} 47. h4 {[%emt 0:00:22]} h5 {[%emt 0:00:37]} 48. Kf3 {[%emt 0:00:24]} Kc6 {[%emt 0:00:20]} 49. Ke3 {[%emt 0:00:14]} Kd5 {[%emt 0:00:19]} 50. Kd3 {[%emt 0:00:46]} Rb3+ {[%emt 0:00:13]} 51. Ke2 {[%emt 0:00:13]} Ke4 {[%emt 0:00:17]} 52. Kf2 {[%emt 0:00:23]} f4 {[%emt 0:00:27]} 53. Kg2 {[%emt 0:00:39]} Rb2+ {[%emt 0:01:46]} 54. Kh3 {[%emt 0:00:47]} f3 {[%emt 0:01:11]} 55. Kg3 {[%emt 0:00:32]} Rg2+ {[%emt 0:01:35]} 56. Kh3 {[%emt 0:00:07]} Rg4 {[%emt 0:00:23]} 57. Bf4 {[%emt 0:03:11]} f2 {[%emt 0:01:03]} 58. Bg3 {[%emt 0:00:35]} f1=Q+ {[%emt 0:00:30]} 59. Kh2 {[%emt 0:00:17]} Kf3 {[%emt 0:01:08]} 0-1

[Event "CZE-ch Youth G10-G12-G14 2022"]
[Site "Luhacovice"]
[Date "2022.03.12"]
[Round "1.18"]
[White "Slivova, Linda"]
[Black "Kubatova Beta"]
[Result "1-0"]
[ECO "B26"]
[WhiteElo "1298"]
[BlackElo "1071"]
[Annotator "NA RC"]
[PlyCount "157"]
[EventDate "2022.03.12"]
[EventType "swiss"]
[EventCountry "CZE"]
[SourceTitle "playchess.com"]
[Source "ChessBase"]
[SourceQuality "1"]
[TimeControl "40/5400+30:1800+30"]

1. e4 {[%emt 0:00:04]} c5 {[%emt 0:00:13]} 2. Nc3 {[%emt 0:00:10]} Nc6 {[%emt 0:00:39]} 3. g3 {[%emt 0:00:33]} Nf6 {[%emt 0:00:41]} 4. Bg2 {[%emt 0:00:52]} g6 {[%emt 0:00:56]} 5. d3 {[%emt 0:01:37]} Bg7 {[%emt 0:00:58]} 6. Be3 {[%emt 0:02:14]} d6 {[%emt 0:02:55]} 7. f4 {[%emt 0:03:41]} O-O {[%emt 0:05:27]} 8. Nf3 {[%emt 0:02:30]} a6 {[%emt 0:02:09]} 9. O-O {[%emt 0:01:06]} b5 {[%emt 0:01:41]} 10. Nh4 {[%emt 0:06:59]} Bd7 {[%emt 0:04:47]} 11. h3 {[%emt 0:16:19]} Rc8 {[%emt 0:15:50]} 12. Qd2 {[%emt 0:02:39]} Rb8 {[%emt 0:12:47]} 13. f5 {[%emt 0:01:49]} Ne5 {[%emt 0:03:42]} 14. Bh6 {[%emt 0:03:29]} Re8 {[%emt 0:02:00]} 15. Bxg7 {[%emt 0:00:58]} Kxg7 {[%emt 0:00:23]} 16. fxg6 {[%emt 0:04:25]} fxg6 {[%emt 0:00:39]} 17. Nf3 {[%emt 0:02:58]} Nc6 {[%emt 0:02:30]} 18. Nd5 {[%emt 0:07:59]} Be6 {[%emt 0:03:39]} 19. Nf4 {[%emt 0:05:37]} Bf7 {[%emt 0:02:47]} 20. Ng5 {[%emt 0:01:09]} Qd7 {[%emt 0:02:00]} 21. Nxf7 {[%emt 0:00:43]} Kxf7 {[%emt 0:00:24]} 22. Nd5 {[%emt 0:02:17]} Kg7 {[%emt 0:06:51]} 23. Nxf6 {[%emt 0:07:44]} exf6 {[%emt 0:00:32]} 24. Rf2 {[%emt 0:03:23]} Rf8 {[%emt 0:00:43]} 25. Raf1 {[%emt 0:00:54]} Rf7 {[%emt 0:01:12]} 26. c3 {[%emt 0:01:55]} Rbf8 {[%emt 0:01:41]} 27. Kh2 {[%emt 0:02:33]} h5 {[%emt 0:06:58]} 28. d4 {[%emt 0:04:24]} cxd4 {[%emt 0:03:12]} 29. cxd4 {[%emt 0:00:07]} Qc8 {[%emt 0:00:28]} 30. Rc1 {[%emt 0:01:32]} Qd7 {[%emt 0:01:39]} 31. e5 {[%emt 0:01:51]} Ne7 {[%emt 0:02:16]} 32. exf6+ {[%emt 0:01:57]} Rxf6 {[%emt 0:00:29]} 33. Rxf6 {[%emt 0:00:58]} Rxf6 {[%emt 0:00:14]} 34. Qa5 {[%emt 0:01:20]} Qe6 {[%emt 0:07:04]} 35. Re1 {[%emt 0:01:45]} Qd7 {[%emt 0:00:48]} 36. Qxa6 {[%emt 0:00:17]} Rf7 {[%emt 0:02:09]} 37. Qa5 {[%emt 0:03:00]} Nf5 {[%emt 0:01:03]} 38. Qc3 {[%emt 0:00:20]} Qd8 {[%emt 0:02:06]} 39. d5+ {[%emt 0:00:44]} Kg8 {[%emt 0:00:35]} 40. Re6 {[%emt 0:00:23]} Rg7 {[%emt 0:01:11]} 41. Qf6 {[%emt 0:33:09]} Qxf6 {[%emt 0:30:47]} 42. Rxf6 {[%emt 0:00:06]} Kh7 {[%emt 0:00:18]} 43. Re6 {[%emt 0:01:05]} Rd7 {[%emt 0:00:39]} 44. Bf1 {[%emt 0:00:53]} b4 {[%emt 0:00:22]} 45. Re4 {[%emt 0:00:52]} Rb7 {[%emt 0:00:12]} 46. a3 {[%emt 0:00:59]} bxa3 {[%emt 0:00:11]} 47. bxa3 {[%emt 0:00:10]} Ra7 {[%emt 0:00:09]} 48. g4 {[%emt 0:00:23]} hxg4 {[%emt 0:00:20]} 49. hxg4 {[%emt 0:00:10]} Ne7 {[%emt 0:00:10]} 50. Bc4 {[%emt 0:01:02]} Nc8 {[%emt 0:01:52]} 51. Re3 {[%emt 0:00:41]} Nb6 {[%emt 0:00:20]} 52. Ba2 {[%emt 0:00:39]} Kg7 {[%emt 0:01:04]} 53. g5 {[%emt 0:00:47]} Nc8 {[%emt 0:00:44]} 54. Bb1 {[%emt 0:00:35]} Ne7 {[%emt 0:00:27]} 55. Be4 {[%emt 0:00:37]} Nc8 {[%emt 0:00:32]} 56. Rc3 {[%emt 0:00:18]} Ne7 {[%emt 0:00:38]} 57. Kg2 {[%emt 0:00:27]} Ra4 {[%emt 0:00:45]} 58. Bf3 {[%emt 0:00:11]} Ra7 {[%emt 0:00:43]} 59. Kf2 {[%emt 0:00:16]} Nf5 {[%emt 0:00:19]} 60. Bg4 {[%emt 0:00:46]} Ne7 {[%emt 0:00:31]} 61. Be6 {[%emt 0:00:20]} Kf8 {[%emt 0:00:49]} 62. Ke3 {[%emt 0:00:46]} Ke8 {[%emt 0:00:27]} 63. Kd2 {[%emt 0:00:50]} Kd8 {[%emt 0:00:42]} 64. Kc2 {[%emt 0:00:29]} Rb7 {[%emt 0:00:15]} 65. a4 {[%emt 0:00:17]} Ra7 {[%emt 0:00:25]} 66. Kb3 {[%emt 0:00:12]} Rb7+ {[%emt 0:00:47]} 67. Ka3 {[%emt 0:00:05]} Rb8 {[%emt 0:00:16]} 68. Rb3 {[%emt 0:00:33]} Ra8 {[%emt 0:00:55]} 69. Rb7 {[%emt 0:00:40]} Nc8 {[%emt 0:00:30]} 70. Kb4 {[%emt 0:00:30]} Na7 {[%emt 0:00:26]} 71. a5 {[%emt 0:01:12]} Nc8 {[%emt 0:00:36]} 72. Kb5 {[%emt 0:00:38]} Ne7 {[%emt 0:00:25]} 73. a6 {[%emt 0:00:22]} Nc8 {[%emt 0:00:34]} 74. Bxc8 {[%emt 0:00:27]} Kxc8 {[%emt 0:00:06]} 75. Kb6 {[%emt 0:00:13]} Kd8 {[%emt 0:00:26]} 76. a7 {[%emt 0:00:29]} Kc8 {[%emt 0:00:10]} 77. Rb8+ {[%emt 0:00:12]} Rxb8+ {[%emt 0:00:07]} 78. axb8=Q+ {[%emt 0:00:03]} Kxb8 {[%emt 0:00:15]} 79. Kc6 {[%emt 0:00:03]} 1-0

[Event "CZE-ch Youth G10-G12-G14 2022"]
[Site "Luhacovice"]
[Date "2022.03.12"]
[Round "1.19"]
[White "Rezacova Julie"]
[Black "Bouchalova, Kveta"]
[Result "0-1"]
[ECO "C42"]
[WhiteElo "1063"]
[BlackElo "1303"]
[Annotator "NA"]
[PlyCount "25"]
[EventDate "2022.03.12"]
[EventType "swiss"]
[EventCountry "CZE"]
[SourceTitle "playchess.com"]
[Source "ChessBase"]
[SourceQuality "1"]
[TimeControl "40/5400+30:1800+30"]

1. e4 {[%emt 0:00:06]} e5 {[%emt 0:00:04]} 2. Nf3 {[%emt 0:00:07]} Nc6 {[%emt 0:00:09]} 3. Nc3 {[%emt 0:00:37]} Nf6 {[%emt 0:00:15]} 4. d3 {[%emt 0:00:21]} Bb4 {[%emt 0:01:10]} 5. Bd2 {[%emt 0:00:22]} O-O {[%emt 0:01:13]} 6. Be2 {[%emt 0:00:08]} d5 {[%emt 0:06:03]} 7. O-O {[%emt 0:00:20]} Bg4 {[%emt 0:03:03]} 8. h3 {[%emt 0:00:20]} Bh5 {[%emt 0:03:01]} 9. Bg5 {[%emt 0:00:53]} Bxc3 {[%emt 0:01:54]} 10. bxc3 {[%emt 0:00:15]} Nxe4 {[%emt 0:00:34]} 11. Be3 {[%emt 0:00:27]} Nxc3 {[%emt 0:01:20]} 12. Kh1 {[%emt 0:12:46]} h6 {[%emt 0:07:39]} 13. h4 {[%emt 0:04:23]} 0-1

[Event "CZE-ch Youth G10-G12-G14 2022"]
[Site "Luhacovice"]
[Date "2022.03.12"]
[Round "1.20"]
[White "Barteckova, Valerie"]
[Black "Lukaskova Ellen"]
[Result "0-1"]
[ECO "C78"]
[WhiteElo "1250"]
[BlackElo "1058"]
[Annotator "NA"]
[PlyCount "92"]
[EventDate "2022.03.12"]
[EventType "swiss"]
[EventCountry "CZE"]
[SourceTitle "playchess.com"]
[Source "ChessBase"]
[SourceQuality "1"]
[TimeControl "40/5400+30:1800+30"]

1. e4 {[%emt 0:00:03]} e5 {[%emt 0:00:02]} 2. Nf3 {[%emt 0:00:09]} Nc6 {[%emt 0:00:19]} 3. Bb5 {[%emt 0:00:13]} Bc5 {[%emt 0:00:57]} 4. c3 {[%emt 0:00:35]} a6 {[%emt 0:01:19]} 5. Ba4 {[%emt 0:00:41]} Nf6 {[%emt 0:01:03]} 6. O-O {[%emt 0:03:32]} b5 {[%emt 0:01:27]} 7. Bc2 {[%emt 0:00:45]} O-O {[%emt 0:03:26]} 8. d4 {[%emt 0:00:38]} exd4 {[%emt 0:01:37]} 9. cxd4 {[%emt 0:00:35]} Bb6 {[%emt 0:00:42]} 10. Bg5 {[%emt 0:01:41]} h6 {[%emt 0:02:00]} 11. Bh4 {[%emt 0:01:17]} g5 {[%emt 0:04:24]} 12. Bg3 {[%emt 0:05:45]} d5 {[%emt 0:01:30]} 13. e5 {[%emt 0:02:05]} Nh5 {[%emt 0:04:36]} 14. Qd3 {[%emt 0:01:55]} f5 {[%emt 0:01:59]} 15. exf6 {[%emt 0:01:01]} Rxf6 {[%emt 0:02:44]} 16. Qh7+ {[%emt 0:00:39]} Kf8 {[%emt 0:01:38]} 17. Qh8+ {[%emt 0:02:50]} Kf7 {[%emt 0:02:48]} 18. Nxg5+ {[%emt 0:04:07]} hxg5 {[%emt 0:03:39]} 19. Qxh5+ {[%emt 0:00:42]} Kf8 {[%emt 0:02:30]} 20. Qh8+ {[%emt 0:07:29]} Ke7 {[%emt 0:02:39]} 21. Re1+ {[%emt 0:02:23]} Be6 {[%emt 0:03:16]} 22. Qg7+ {[%emt 0:02:55]} Rf7 {[%emt 0:01:38]} 23. Qxg5+ {[%emt 0:01:20]} Kd7 {[%emt 0:01:03]} 24. Qxd8+ {[%emt 0:08:06]} Rxd8 {[%emt 0:00:58]} 25. Nc3 {[%emt 0:05:02]} Nxd4 {[%emt 0:02:37]} 26. Bd3 {[%emt 0:03:23]} Bf5 {[%emt 0:02:37]} 27. Bxf5+ {[%emt 0:03:52]} Rxf5 {[%emt 0:01:09]} 28. Rad1 {[%emt 0:01:39]} b4 {[%emt 0:03:41]} 29. Na4 {[%emt 0:04:16]} Ba7 {[%emt 0:03:04]} 30. Rc1 {[%emt 0:02:45]} c6 {[%emt 0:01:24]} 31. Kf1 {[%emt 0:08:35]} b3 {[%emt 0:01:10]} 32. a3 {[%emt 0:03:15]} Nc2 {[%emt 0:02:43]} 33. Re2 {[%emt 0:02:15]} d4 {[%emt 0:01:28]} 34. Rd2 {[%emt 0:02:59]} c5 {[%emt 0:03:12]} 35. Nc3 {[%emt 0:01:39]} Kc6 {[%emt 0:01:30]} 36. Ne2 {[%emt 0:02:03]} d3 {[%emt 0:04:52]} 37. Nf4 {[%emt 0:01:36]} c4 {[%emt 0:02:16]} 38. h3 {[%emt 0:02:32]} Rd7 {[%emt 0:05:20]} 39. Kg1 {[%emt 0:04:49]} Bd4 {[%emt 0:02:28]} 40. Rb1 {[%emt 0:01:12]} Bxb2 {[%emt 0:02:35]} 41. Rxb2 {[%emt 0:31:08]} c3 {[%emt 0:30:23]} 42. Rxb3 {[%emt 0:02:14]} cxd2 {[%emt 0:00:55]} 43. Rc3+ {[%emt 0:03:14]} Rc5 {[%emt 0:00:49]} 44. Rxc5+ {[%emt 0:01:12]} Kxc5 {[%emt 0:00:37]} 45. Ne6+ {[%emt 0:00:30]} Kc6 {[%emt 0:01:06]} 46. Nd4+ {[%emt 0:00:59]} Rxd4 {[%emt 0:00:43]} 0-1

[Event "CZE-ch Youth G10-G12-G14 2022"]
[Site "Luhacovice"]
[Date "2022.03.12"]
[Round "1.21"]
[White "Archlebova Eva"]
[Black "Barteckova, Nikol"]
[Result "0-1"]
[ECO "B30"]
[WhiteElo "1040"]
[BlackElo "1140"]
[Annotator "NA"]
[PlyCount "70"]
[EventDate "2022.03.12"]
[EventType "swiss"]
[EventCountry "CZE"]
[SourceTitle "playchess.com"]
[Source "ChessBase"]
[SourceQuality "1"]
[TimeControl "40/5400+30:1800+30"]

1. e4 {[%emt 0:00:10]} c5 {[%emt 0:00:04]} 2. Nc3 {[%emt 0:00:27]} e6 {[%emt 0:00:15]} 3. Nf3 {[%emt 0:00:21]} Nc6 {[%emt 0:00:32]} 4. Bc4 {[%emt 0:00:23]} Nf6 {[%emt 0:00:41]} 5. d3 {[%emt 0:00:28]} a6 {[%emt 0:00:53]} 6. Bg5 {[%emt 0:00:45]} Be7 {[%emt 0:00:16]} 7. O-O {[%emt 0:00:20]} b5 {[%emt 0:00:40]} 8. Bb3 {[%emt 0:00:22]} Qc7 {[%emt 0:01:55]} 9. h3 {[%emt 0:00:36]} Bb7 {[%emt 0:00:25]} 10. Qe2 {[%emt 0:01:42]} d6 {[%emt 0:02:32]} 11. Rad1 {[%emt 0:01:45]} O-O {[%emt 0:00:46]} 12. a3 {[%emt 0:04:30]} Rad8 {[%emt 0:01:43]} 13. Qe3 {[%emt 0:09:05]} Kh8 {[%emt 0:03:13]} 14. a4 {[%emt 0:01:30]} Qa5 {[%emt 0:05:05]} 15. d4 {[%emt 0:02:05]} b4 {[%emt 0:00:58]} 16. Nd5 {[%emt 0:02:29]} exd5 {[%emt 0:27:31]} 17. Bxf6 {[%emt 0:00:52]} Bxf6 {[%emt 0:00:20]} 18. Bxd5 {[%emt 0:00:16]} Qxa4 {[%emt 0:02:23]} 19. c3 {[%emt 0:12:48]} Qb5 {[%emt 0:03:15]} 20. dxc5 {[%emt 0:04:17]} dxc5 {[%emt 0:00:50]} 21. c4 {[%emt 0:00:50]} Qb6 {[%emt 0:00:41]} 22. b3 {[%emt 0:00:40]} Ba8 {[%emt 0:02:29]} 23. e5 {[%emt 0:01:56]} Rde8 {[%emt 0:03:07]} 24. Qf4 {[%emt 0:02:00]} Nd4 {[%emt 0:02:17]} 25. Rfe1 {[%emt 0:02:51]} Nxf3+ {[%emt 0:05:26]} 26. Bxf3 {[%emt 0:00:57]} Bxf3 {[%emt 0:00:06]} 27. gxf3 {[%emt 0:00:26]} Bd8 {[%emt 0:01:06]} 28. Rd6 {[%emt 0:01:11]} Qb7 {[%emt 0:02:07]} 29. e6 {[%emt 0:00:33]} Bc7 {[%emt 0:01:02]} 30. Qxf7 {[%emt 0:02:26]} Rxf7 {[%emt 0:00:22]} 31. exf7 {[%emt 0:00:13]} Rxe1+ {[%emt 0:00:05]} 32. Kg2 {[%emt 0:01:11]} Bxd6 {[%emt 0:00:07]} 33. h4 {[%emt 0:01:23]} Qxf7 {[%emt 0:00:14]} 34. Kh3 {[%emt 0:01:52]} Qg6 {[%emt 0:00:42]} 35. f4 {[%emt 0:00:21]} Rh1# {[%emt 0:00:12]} 0-1

[Event "CZE-ch Youth G10-G12-G14 2022"]
[Site "Luhacovice"]
[Date "2022.03.12"]
[Round "1.22"]
[White "Hladka, Leontyna"]
[Black "Martinkovicova Nela"]
[Result "0-1"]
[ECO "C41"]
[WhiteElo "1134"]
[BlackElo "1032"]
[Annotator "NA"]
[PlyCount "87"]
[EventDate "2022.03.12"]
[EventType "swiss"]
[EventCountry "CZE"]
[SourceTitle "playchess.com"]
[Source "ChessBase"]
[SourceQuality "1"]
[TimeControl "40/5400+30:1800+30"]

1. e4 {[%emt 0:00:03]} e5 {[%emt 0:00:10]} 2. Nf3 {[%emt 0:00:07]} Nc6 {[%emt 0:00:08]} 3. d4 {[%emt 0:00:16]} d6 {[%emt 0:01:20]} 4. dxe5 {[%emt 0:00:25]} dxe5 {[%emt 0:01:19]} 5. Qxd8+ {[%emt 0:00:16]} Kxd8 {[%emt 0:00:34]} 6. Bc4 {[%emt 0:00:49]} Be6 {[%emt 0:00:37]} 7. Bxe6 {[%emt 0:00:48]} fxe6 {[%emt 0:00:22]} 8. O-O {[%emt 0:00:18]} Kd7 {[%emt 0:01:32]} 9. Nc3 {[%emt 0:00:59]} Rd8 {[%emt 0:00:41]} 10. Bg5 {[%emt 0:03:16]} Be7 {[%emt 0:00:46]} 11. Rfd1+ {[%emt 0:01:43]} Kc8 {[%emt 0:02:13]} 12. Bxe7 {[%emt 0:01:18]} Ngxe7 {[%emt 0:03:24]} 13. Ng5 {[%emt 0:02:01]} Rxd1+ {[%emt 0:04:28]} 14. Rxd1 {[%emt 0:00:21]} Nd8 {[%emt 0:01:59]} 15. Ne2 {[%emt 0:04:17]} h6 {[%emt 0:01:33]} 16. Nf3 {[%emt 0:01:46]} Ng6 {[%emt 0:01:58]} 17. a3 {[%emt 0:01:41]} Nf7 {[%emt 0:01:11]} 18. Rd3 {[%emt 0:04:38]} Nf4 {[%emt 0:02:04]} 19. Nxf4 {[%emt 0:01:31]} exf4 {[%emt 0:00:26]} 20. Nd4 {[%emt 0:02:05]} Ne5 {[%emt 0:02:04]} 21. Rd2 {[%emt 0:02:09]} Nc4 {[%emt 0:01:02]} 22. Re2 {[%emt 0:01:47]} Rd8 {[%emt 0:02:13]} 23. c3 {[%emt 0:01:00]} c5 {[%emt 0:00:42]} 24. Nf3 {[%emt 0:00:16]} Nxb2 {[%emt 0:03:49]} 25. h3 {[%emt 0:00:59]} Nc4 {[%emt 0:03:17]} 26. a4 {[%emt 0:01:59]} Rd3 {[%emt 0:01:44]} 27. Rc2 {[%emt 0:00:40]} Rd1+ {[%emt 0:01:11]} 28. Kh2 {[%emt 0:00:37]} Rd3 {[%emt 0:01:38]} 29. Rc1 {[%emt 0:02:41]} Nd2 {[%emt 0:01:26]} 30. Ne5 {[%emt 0:01:28]} Rd6 {[%emt 0:02:45]} 31. f3 {[%emt 0:02:50]} a6 {[%emt 0:03:41]} 32. Kg1 {[%emt 0:02:37]} h5 {[%emt 0:01:39]} 33. Kf2 {[%emt 0:01:03]} Kc7 {[%emt 0:01:50]} 34. Ke2 {[%emt 0:00:56]} Nb3 {[%emt 0:00:55]} 35. Rb1 {[%emt 0:00:57]} Na5 {[%emt 0:01:07]} 36. Rb2 {[%emt 0:01:48]} Nc6 {[%emt 0:01:49]} 37. Nc4 {[%emt 0:01:02]} Rd7 {[%emt 0:02:22]} 38. Nb6 {[%emt 0:01:37]} Rd6 {[%emt 0:02:34]} 39. Nc4 {[%emt 0:01:12]} Rd7 {[%emt 0:08:13]} 40. Nb6 {[%emt 0:00:22]} Rd6 {[%emt 0:05:58]} 41. Nc4 {[%emt 0:30:52]} Rd7 {[%emt 0:30:53]} 42. Nb6 {[%emt 0:00:22]} Rd6 {[%emt 0:00:26]} 43. Nc4 {[%emt 0:00:12]} Rd7 {[%emt 0:00:15]} 44. Nb6 {[%emt 0:00:08]} 0-1

[Event "CZE-ch Youth G10-G12-G14 2022"]
[Site "Luhacovice"]
[Date "2022.03.12"]
[Round "1.23"]
[White "Archlebova Iva"]
[Black "Stavova, Lucie"]
[Result "0-1"]
[ECO "C50"]
[WhiteElo "1028"]
[BlackElo "1048"]
[Annotator "NA"]
[PlyCount "73"]
[EventDate "2022.03.12"]
[EventType "swiss"]
[EventCountry "CZE"]
[SourceTitle "playchess.com"]
[Source "ChessBase"]
[SourceQuality "1"]
[TimeControl "40/5400+30:1800+30"]

1. e4 {[%emt 0:00:08]} e5 {[%emt 0:00:17]} 2. Nf3 {[%emt 0:00:16]} Nc6 {[%emt 0:00:11]} 3. Bc4 {[%emt 0:00:21]} Nf6 {[%emt 0:00:15]} 4. Nc3 {[%emt 0:01:00]} Bc5 {[%emt 0:01:11]} 5. d3 {[%emt 0:00:25]} d6 {[%emt 0:00:59]} 6. h3 {[%emt 0:00:38]} O-O {[%emt 0:00:30]} 7. O-O {[%emt 0:00:25]} Be6 {[%emt 0:01:23]} 8. Bxe6 {[%emt 0:01:20]} fxe6 {[%emt 0:00:27]} 9. Ng5 {[%emt 0:01:49]} Qd7 {[%emt 0:02:15]} 10. Nb5 {[%emt 0:02:38]} Bb6 {[%emt 0:04:04]} 11. Nf3 {[%emt 0:02:15]} a6 {[%emt 0:01:15]} 12. Nc3 {[%emt 0:00:44]} d5 {[%emt 0:02:44]} 13. Bg5 {[%emt 0:00:48]} d4 {[%emt 0:16:36]} 14. Na4 {[%emt 0:05:16]} Ba7 {[%emt 0:01:42]} 15. c3 {[%emt 0:01:07]} b5 {[%emt 0:02:23]} 16. Bxf6 {[%emt 0:01:50]} Rxf6 {[%emt 0:00:33]} 17. cxd4 {[%emt 0:00:57]} exd4 {[%emt 0:02:24]} 18. Rc1 {[%emt 0:00:51]} bxa4 {[%emt 0:01:02]} 19. Qxa4 {[%emt 0:00:25]} e5 {[%emt 0:01:32]} 20. Nxe5 {[%emt 0:01:20]} Nxe5 {[%emt 0:00:33]} 21. Qb3+ {[%emt 0:06:12]} Kh8 {[%emt 0:01:24]} 22. Qd5 {[%emt 0:03:22]} Qxd5 {[%emt 0:01:37]} 23. exd5 {[%emt 0:01:20]} Nxd3 {[%emt 0:01:02]} 24. Rxc7 {[%emt 0:00:43]} Nxb2 {[%emt 0:02:02]} 25. Rd7 {[%emt 0:03:55]} Bc5 {[%emt 0:03:26]} 26. Rc7 {[%emt 0:02:56]} Bd6 {[%emt 0:02:25]} 27. Rc6 {[%emt 0:01:30]} Be5 {[%emt 0:02:28]} 28. Rxf6 {[%emt 0:00:52]} Bxf6 {[%emt 0:00:30]} 29. d6 {[%emt 0:01:04]} d3 {[%emt 0:01:34]} 30. Rb1 {[%emt 0:01:22]} d2 {[%emt 0:00:35]} 31. Rxb2 {[%emt 0:01:40]} d1=Q+ {[%emt 0:00:18]} 32. Kh2 {[%emt 0:01:37]} Bxb2 {[%emt 0:00:22]} 33. d7 {[%emt 0:00:55]} Qxd7 {[%emt 0:00:41]} 34. Kh1 {[%emt 0:00:48]} Rf8 {[%emt 0:00:27]} 35. Kg1 {[%emt 0:00:41]} Qd1+ {[%emt 0:01:02]} 36. Kh2 {[%emt 0:00:21]} Be5+ {[%emt 0:00:30]} 37. g3 {[%emt 0:00:33]} 0-1

[Event "CZE-ch Youth G10-G12-G14 2022"]
[Site "Luhacovice"]
[Date "2022.03.12"]
[Round "1.24"]
[White "Souralova, Alena"]
[Black "Bartova Hana"]
[Result "0-1"]
[ECO "C50"]
[WhiteElo "1010"]
[BlackElo "1000"]
[Annotator "NA"]
[PlyCount "81"]
[EventDate "2022.03.12"]
[EventType "swiss"]
[EventCountry "CZE"]
[SourceTitle "playchess.com"]
[Source "ChessBase"]
[SourceQuality "1"]
[TimeControl "40/5400+30:1800+30"]

1. e4 {[%emt 0:00:03]} e5 {[%emt 0:00:07]} 2. Nf3 {[%emt 0:00:21]} Nc6 {[%emt 0:00:14]} 3. Bc4 {[%emt 0:00:55]} Bc5 {[%emt 0:01:20]} 4. d3 {[%emt 0:02:26]} Nf6 {[%emt 0:01:20]} 5. Nc3 {[%emt 0:01:52]} h6 {[%emt 0:02:11]} 6. Be3 {[%emt 0:04:05]} Bxe3 {[%emt 0:01:30]} 7. fxe3 {[%emt 0:01:00]} Ng4 {[%emt 0:04:09]} 8. Qe2 {[%emt 0:01:55]} Nb4 {[%emt 0:02:12]} 9. a3 {[%emt 0:02:38]} Nc6 {[%emt 0:01:34]} 10. O-O {[%emt 0:01:59]} O-O {[%emt 0:02:28]} 11. Rad1 {[%emt 0:00:49]} d6 {[%emt 0:02:00]} 12. d4 {[%emt 0:04:44]} Qe7 {[%emt 0:02:54]} 13. Nd5 {[%emt 0:06:23]} Qd8 {[%emt 0:01:03]} 14. dxe5 {[%emt 0:05:45]} Ngxe5 {[%emt 0:01:48]} 15. Nxe5 {[%emt 0:00:27]} Nxe5 {[%emt 0:00:20]} 16. Nb4 {[%emt 0:01:53]} c5 {[%emt 0:01:01]} 17. Nd3 {[%emt 0:00:37]} Nxc4 {[%emt 0:00:28]} 18. b3 {[%emt 0:00:56]} Nxa3 {[%emt 0:01:48]} 19. Nf4 {[%emt 0:01:24]} a6 {[%emt 0:08:16]} 20. e5 {[%emt 0:00:28]} Nb5 {[%emt 0:01:01]} 21. exd6 {[%emt 0:00:35]} Nc3 {[%emt 0:03:04]} 22. Qd3 {[%emt 0:00:59]} Nxd1 {[%emt 0:00:50]} 23. Rxd1 {[%emt 0:00:09]} Bd7 {[%emt 0:01:48]} 24. Qd5 {[%emt 0:01:23]} b6 {[%emt 0:01:58]} 25. Nd3 {[%emt 0:05:54]} Be6 {[%emt 0:01:46]} 26. Qb7 {[%emt 0:01:36]} Qxd6 {[%emt 0:01:18]} 27. e4 {[%emt 0:01:28]} Rfb8 {[%emt 0:00:35]} 28. Qxb8+ {[%emt 0:00:40]} Rxb8 {[%emt 0:00:15]} 29. e5 {[%emt 0:00:17]} Qd4+ {[%emt 0:00:42]} 30. Kh1 {[%emt 0:00:46]} Bf5 {[%emt 0:00:24]} 31. h3 {[%emt 0:00:15]} Bxd3 {[%emt 0:00:24]} 32. Rxd3 {[%emt 0:00:22]} Qxe5 {[%emt 0:01:17]} 33. Kg1 {[%emt 0:00:29]} Re8 {[%emt 0:00:18]} 34. Rd1 {[%emt 0:00:15]} b5 {[%emt 0:01:36]} 35. Rf1 {[%emt 0:01:00]} a5 {[%emt 0:00:17]} 36. Kh1 {[%emt 0:00:38]} a4 {[%emt 0:00:17]} 37. bxa4 {[%emt 0:00:13]} bxa4 {[%emt 0:00:07]} 38. Ra1 {[%emt 0:00:43]} Qxa1+ {[%emt 0:00:13]} 39. Kh2 {[%emt 0:00:00]} Re1 {[%emt 0:00:36]} 40. c4 {[%emt 0:00:08]} Qe5+ {[%emt 0:00:24]} 41. g3 {[%emt 0:30:13]} 0-1